fUST/lending_fUST_20260117
["ID","MTS","AMOUNT","RATE_DAILY","PERIOD"]
[402263601,1768632642707,-500.0,0.00019178,3]
[402263602,1768632642719,-500.0,0.00019178,3]
[402263605,1768632642728,-500.0,0.00019178,3]
[402263606,1768632642739,-500.0,0.00019178,3]
[402263609,1768632642748,-500.0,0.00019178,3]
[402263611,1768632642757,-781.61,0.00019178,3]
[402263612,1768632642768,-500.0,0.00019178,3]
[402263615,1768632642778,-1324.45,0.00019178,3]
[402263617,1768632642787,-500.0,0.00019178,3]
[402263619,1768632642796,-444.83809808,0.00019178,3]
[402263621,1768632642806,-500.0,0.00019178,3]
[402263623,1768632642816,-680.35,0.00019178,3]
[402263625,1768632642825,-500.0,0.00019178,3]
[402263627,1768632642834,-500.0,0.00019178,3]
[402263629,1768632642844,-500.0,0.00019178,3]
[402263631,1768632642854,-2338.27,0.00019178,3]
[402263633,1768632642864,-500.0,0.00019178,3]
[402263635,1768632642873,-1000.0,0.00019178,2]
[402263637,1768632642883,-500.0,0.00019178,3]
[402263639,1768632642893,-500.0,0.00019178,3]
[402263641,1768632642902,-500.0,0.00019178,3]
[402263643,1768632642912,-545.70994322,0.00019178,3]
[402263645,1768632642921,-500.0,0.00019178,3]
[402263647,1768632642931,-939.95,0.00019178,3]
[402263649,1768632642940,-500.0,0.00019178,3]
[402263651,1768632642950,-659.07,0.00019178,3]
[402263653,1768632642959,-500.0,0.00019178,3]
[402263655,1768632642968,-264.29964932,0.00019178,3]
[402263657,1768632642977,-944.2,0.00019178,3]
[402263659,1768632642986,-500.0,0.00019178,3]
[402263661,1768632642995,-500.0,0.00019178,3]
[402263663,1768632643005,-500.0,0.00019178,3]
[402263665,1768632643015,-693.24,0.00019178,3]
[402263667,1768632643024,-500.0,0.00019178,3]
[402263669,1768632643035,-500.0,0.00019178,3]
[402263670,1768632643045,-500.0,0.00019178,3]
[402263673,1768632643055,-500.0,0.00019178,3]
[402263676,1768632643065,-774.73,0.00019178,3]
[402263679,1768632643074,-500.0,0.00019178,3]
[402263682,1768632643083,-1170.72,0.00019178,3]
[402263685,1768632643092,-500.0,0.00019178,3]
[402263688,1768632643102,-500.0,0.00019178,3]
[402263691,1768632643111,-1106.34,0.00019178,3]
[402263694,1768632643121,-500.0,0.00019178,3]
[402263697,1768632643130,-500.0,0.00019178,3]
[402263699,1768632643140,-500.0,0.00019178,3]
[402263701,1768632643149,-500.0,0.00019178,3]
[402263703,1768632643160,-1581.13,0.00019178,3]
[402263705,1768632643170,-1859.94,0.00019178,3]
[402263707,1768632643179,-500.0,0.00019178,3]
[402263709,1768632643189,-500.0,0.00019178,3]
[402263711,1768632643198,-1016.59,0.00019178,3]
[402263713,1768632643208,-1586.94,0.00019178,3]
[402263715,1768632643218,-500.0,0.00019178,3]
[402263717,1768632643228,-500.0,0.00019178,3]
[402263720,1768632643237,-614.31374356,0.00019178,3]
[402263723,1768632643247,-500.0,0.00019178,3]
[402263726,1768632643258,-972.38,0.00019178,3]
[402263729,1768632643268,-500.0,0.00019178,3]
[402263731,1768632643278,-500.0,0.00019178,3]
[402263733,1768632643287,-500.0,0.00019178,3]
[402263735,1768632643296,-228.977496,0.00019178,2]
[402263737,1768632643306,-228.977496,0.00019178,2]
[402263739,1768632643316,-500.0,0.00019178,3]
[402263741,1768632643325,-228.977496,0.00019178,2]
[402263743,1768632643334,-617.9,0.00019178,3]
[402263745,1768632643344,-228.977496,0.00019178,2]
[402263747,1768632643354,-500.0,0.00019178,3]
[402263749,1768632643363,-228.977496,0.00019178,2]
[402263751,1768632643373,-228.977496,0.00019178,2]
[402263753,1768632643382,-228.977496,0.00019178,2]
[402263755,1768632643391,-228.977496,0.00019178,2]
[402263757,1768632643400,-228.977496,0.00019178,2]
[402263759,1768632643409,-500.0,0.00019178,3]
[402263761,1768632643419,-228.977496,0.00019178,2]
[402263763,1768632643429,-960.56,0.00019178,3]
[402263765,1768632643438,-228.977496,0.00019178,2]
[402263767,1768632643448,-228.977496,0.00019178,2]
[402263769,1768632643457,-228.977496,0.00019178,2]
[402263771,1768632643467,-500.0,0.00019178,3]
[402263773,1768632643476,-228.977496,0.00019178,2]
[402263775,1768632643486,-500.0,0.00019178,3]
[402263777,1768632643497,-228.977496,0.00019178,2]
[402263779,1768632643506,-228.977496,0.00019178,2]
[402263781,1768632643516,-500.0,0.00019178,3]
[402263783,1768632643526,-630.85,0.00019178,3]
[402263785,1768632643535,-500.0,0.00019178,3]
[402263787,1768632643545,-645.95,0.00019178,3]
[402263789,1768632643555,-500.0,0.00019178,3]
[402263791,1768632643564,-694.92,0.00019178,3]
[402263793,1768632643573,-500.0,0.00019178,3]
[402263795,1768632643583,-1200.0,0.00019178,3]
[402263797,1768632643593,-523.35,0.00019178,3]
[402263799,1768632643603,-2140.55,0.00019178,3]
[402263801,1768632643612,-694.6,0.00019178,3]
[402263803,1768632643622,-500.0,0.00019178,3]
[402263805,1768632643632,-500.0,0.00019178,3]
[402263807,1768632643641,-588.41,0.00019178,3]
[402263809,1768632643651,-500.0,0.00019178,3]
[402263811,1768632643660,-1132.82,0.00019178,3]
[402263813,1768632643670,-500.0,0.00019178,3]
[402263816,1768632643680,-500.0,0.00019178,3]
[402263818,1768632643689,-500.0,0.00019178,3]
[402263820,1768632643703,-500.0,0.00019178,3]
[402263822,1768632643713,-2007.96,0.00019178,3]
[402263824,1768632643722,-500.0,0.00019178,3]
[402263826,1768632643732,-500.0,0.00019178,2]
[402263828,1768632643742,-563.8,0.00019178,3]
[402263830,1768632643752,-500.0,0.00019178,3]
[402263832,1768632643761,-500.0,0.00019178,3]
[402263834,1768632643771,-500.0,0.00019178,3]
[402263836,1768632643780,-929.98,0.00019178,3]
[402263838,1768632643790,-500.0,0.00019178,3]
[402263840,1768632643799,-1076.17,0.00019178,3]
[402263842,1768632643809,-500.0,0.00019178,3]
[402263844,1768632643819,-500.0,0.00019178,3]
[402263846,1768632643830,-500.0,0.00019178,3]
[402263848,1768632643839,-500.0,0.00019178,3]
[402263850,1768632643849,-980.65,0.00019178,3]
[402263852,1768632643859,-500.0,0.00019178,3]
[402263854,1768632643869,-500.0,0.00019178,3]
[402263856,1768632643879,-500.0,0.00019178,3]
[402263858,1768632643888,-500.0,0.00019178,3]
[402263860,1768632643898,-504.11,0.00019178,3]
[402263862,1768632643907,-500.0,0.00019178,3]
[402263864,1768632643918,-500.0,0.00019178,3]
[402263866,1768632643929,-905.9,0.00019178,3]
[402263868,1768632643938,-923.41,0.00019178,3]
[402263871,1768632643948,-817.66,0.00019178,3]
[402263872,1768632643957,-895.32,0.00019178,3]
[402263875,1768632643967,-500.0,0.00019178,3]
[402263877,1768632643977,-500.0,0.00019178,3]
[402263879,1768632643986,-500.0,0.00019178,3]
[402263881,1768632643996,-500.0,0.00019178,3]
[402263883,1768632644005,-500.0,0.00019178,3]
[402263885,1768632644015,-740.0,0.00019178,3]
[402263887,1768632644026,-500.0,0.00019178,3]
[402263889,1768632644036,-500.0,0.00019178,3]
[402263891,1768632644045,-1036.96,0.00019178,3]
[402263893,1768632644055,-1054.42,0.00019178,3]
[402263894,1768632644065,-500.0,0.00019178,3]
[402263896,1768632644075,-500.0,0.00019178,3]
[402263899,1768632644085,-500.0,0.00019178,3]
[402263901,1768632644095,-500.0,0.00019178,3]
[402263903,1768632644104,-500.0,0.00019178,3]
[402263904,1768632644114,-611.38,0.00019178,3]
[402263907,1768632644124,-500.3248332,0.00019178,3]
[402263908,1768632644136,-535.22,0.00019178,3]
[402263911,1768632644148,-500.0,0.00019178,3]
[402263912,1768632644160,-1509.89,0.00019178,3]
[402263914,1768632644169,-500.0,0.00019178,3]
[402263915,1768632644178,-500.0,0.00019178,3]
[402263916,1768632644192,-500.0,0.00019178,3]
[402263917,1768632644202,-577.36,0.00019178,3]
[402263918,1768632644211,-500.0,0.00019178,3]
[402263919,1768632644220,-225.94247433,0.00019178,3]
[402263920,1768632644230,-1211.41,0.00019178,3]
[402263921,1768632644239,-531.74,0.00019178,3]
[402263922,1768632644249,-626.22,0.00019178,3]
[402263923,1768632644258,-500.0,0.00019178,3]
[402263924,1768632644268,-1240.14,0.00019178,3]
[402263925,1768632644277,-823.75,0.00019178,3]
[402263926,1768632644286,-504.02216576,0.00019178,3]
[402263927,1768632644296,-500.0,0.00019178,3]
[402263928,1768632644305,-500.0,0.00019178,3]
[402263929,1768632644319,-1108.81,0.00019178,3]
[402263930,1768632644328,-500.0,0.00019178,3]
[402263931,1768632644337,-643.98345217,0.00019178,3]
[402263932,1768632644421,-500.0,0.00019178,3]
[402263933,1768632644432,-500.0,0.00019178,3]
[402263934,1768632644442,-500.0,0.00019178,3]
[402263935,1768632644451,-500.0,0.00019178,3]
[402263936,1768632644460,-500.0,0.00019178,3]
[402263937,1768632644469,-500.0,0.00019178,3]
[402263938,1768632644478,-500.0,0.00019178,3]
[402263939,1768632644487,-500.0,0.00019178,3]
[402263940,1768632644496,-500.0,0.00019178,3]
[402263941,1768632644505,-500.0,0.00019178,3]
[402263942,1768632644514,-500.0,0.00019178,3]
[402263943,1768632644523,-1782.4,0.00019178,3]
[402263944,1768632644532,-647.1,0.00019178,3]
[402263945,1768632644542,-500.0,0.00019178,3]
[402263946,1768632644551,-1158.63,0.00019178,3]
[402263947,1768632644560,-500.0,0.00019178,3]
[402263948,1768632644571,-500.0,0.00019178,3]
[402263949,1768632644581,-500.0,0.00019178,3]
[402263950,1768632644591,-500.0,0.00019178,3]
[402263951,1768632644600,-500.0,0.00019178,3]
[402263952,1768632644609,-500.0,0.00019178,3]
[402263953,1768632644618,-544.53494198,0.00019178,3]
[402263954,1768632644627,-1210.81,0.00019178,3]
[402263955,1768632644636,-500.0,0.00019178,3]
[402263956,1768632644646,-500.0,0.00019178,3]
[402263957,1768632644655,-574.44,0.00019178,3]
[402263958,1768632644665,-500.0,0.00019178,3]
[402263959,1768632644674,-500.0,0.00019178,3]
[402263960,1768632644683,-613.24737358,0.00019178,3]
[402263961,1768632644695,-500.0,0.00019178,3]
[402263962,1768632644705,-500.0,0.00019178,3]
[402263963,1768632644715,-500.0,0.00019178,3]
[402263964,1768632644725,-503.22,0.00019178,3]
[402263965,1768632644735,-1000.0,0.00019178,2]
[402263966,1768632644744,-500.0,0.00019178,3]
[402263967,1768632644754,-500.0,0.00019178,3]
[402263968,1768632644764,-500.0,0.00019178,3]
[402263969,1768632644776,-500.0,0.00019178,3]
[402263970,1768632644786,-500.0,0.00019178,3]
[402263971,1768632644797,-500.0,0.00019178,3]
[402263972,1768632644806,-513.00114578,0.00019178,3]
[402263973,1768632644815,-500.0,0.00019178,3]
[402263974,1768632644825,-1493.38,0.00019178,3]
[402263975,1768632644835,-500.0,0.00019178,3]
[402263976,1768632644844,-1864.45,0.00019178,3]
[402263977,1768632644853,-500.0,0.00019178,3]
[402263978,1768632644863,-500.0,0.00019178,3]
[402263979,1768632644872,-500.0,0.00019178,3]
[402263980,1768632644881,-500.0,0.00019178,3]
[402263981,1768632644891,-523.99827377,0.00019178,3]
[402263982,1768632644900,-500.0,0.00019178,3]
[402263983,1768632644910,-500.0,0.00019178,3]
[402263984,1768632644919,-529.17,0.00019178,3]
[402263985,1768632644928,-500.0,0.00019178,3]
[402263986,1768632644937,-500.0,0.00019178,3]
[402263987,1768632644946,-500.0,0.00019178,3]
[402263988,1768632644956,-500.0,0.00019178,3]
[402263989,1768632644965,-469.18172049,0.00019178,3]
[402263990,1768632644974,-500.0,0.00019178,3]
[402263991,1768632644983,-1521.4,0.00019178,3]
[402263992,1768632644993,-500.0,0.00019178,3]
[402263993,1768632645002,-1047.08,0.00019178,3]
[402263994,1768632645011,-500.0,0.00019178,3]
[402263995,1768632645020,-325.21716664,0.00019178,3]
[402263996,1768632645034,-500.0,0.00019178,3]
[402263997,1768632645044,-500.0,0.00019178,3]
[402263998,1768632645054,-500.0,0.00019178,3]
[402263999,1768632645063,-1759.84,0.00019178,3]
[402264000,1768632645072,-1098.82,0.00019178,3]
[402264001,1768632645081,-500.0,0.00019178,3]
[402264002,1768632645091,-564.35,0.00019178,3]
[402264003,1768632645100,-1993.96,0.00019178,3]
[402264004,1768632645109,-509.99937096,0.00019178,3]
[402264005,1768632645118,-706.91,0.00019178,3]
[402264006,1768632645128,-611.86349143,0.00019178,3]
[402264007,1768632645138,-501.17354468,0.00019178,3]
[402264008,1768632645147,-500.0,0.00019178,3]
[402264009,1768632645157,-500.0,0.00019178,3]
[402264010,1768632645166,-500.0,0.00019178,3]
[402264011,1768632645175,-643.39,0.00019178,3]
[402264012,1768632645184,-500.0,0.00019178,3]
[402264013,1768632645193,-500.0,0.00019178,3]
[402264014,1768632645202,-607.46,0.00019178,3]
[402264015,1768632645212,-1777.27,0.00019178,3]
[402264016,1768632645222,-974.97,0.00019178,3]
[402264017,1768632645232,-772.16,0.00019178,3]
[402264018,1768632645242,-2016.32,0.00019178,3]
[402264019,1768632645251,-500.0,0.00019178,3]
[402264020,1768632645260,-973.16,0.00019178,3]
[402264021,1768632645270,-500.0,0.00019178,3]
[402264022,1768632645280,-523.8,0.00019178,3]
[402264023,1768632645290,-500.0,0.00019178,3]
[402264024,1768632645300,-500.0,0.00019178,3]
[402264025,1768632645309,-500.0,0.00019178,3]
[402264026,1768632645319,-500.92721642,0.00019178,3]
[402264027,1768632645328,-500.0,0.00019178,3]
[402264028,1768632645337,-500.0,0.00019178,3]
[402264029,1768632645346,-500.0,0.00019178,3]
[402264030,1768632645355,-478.32257424,0.00019178,3]
[402264031,1768632645364,-500.0,0.00019178,3]
[402264032,1768632645373,-500.0,0.00019178,3]
[402264033,1768632645383,-523.78,0.00019178,3]
[402264034,1768632645391,-500.0,0.00019178,3]
[402264035,1768632645400,-500.0,0.00019178,3]
[402264036,1768632645410,-500.0,0.00019178,3]
[402264037,1768632645420,-500.0,0.00019178,3]
[402264038,1768632645429,-1499.21,0.00019178,3]
[402264039,1768632645438,-1699.56,0.00019178,3]
[402264040,1768632645448,-553.79,0.00019178,3]
[402264041,1768632645457,-500.0,0.00019178,3]
[402264042,1768632645467,-819.27,0.00019178,3]
[402264043,1768632645477,-500.0,0.00019178,3]
[402264044,1768632645486,-500.0,0.00019178,3]
[402264045,1768632645496,-531.80288578,0.00019178,3]
[402264046,1768632645506,-1047.15,0.00019178,3]
[402264048,1768632645516,-500.0,0.00019178,3]
[402264049,1768632645525,-1613.51,0.00019178,3]
[402264050,1768632645534,-1417.89,0.00019178,3]
[402264051,1768632645543,-500.0,0.00019178,3]
[402264052,1768632645552,-875.55,0.00019178,3]
[402264053,1768632645560,-799.26,0.00019178,3]
[402264054,1768632645570,-1006.35,0.00019178,3]
[402264055,1768632645579,-516.98754424,0.00019178,3]
[402264056,1768632645588,-500.0,0.00019178,3]
[402264057,1768632645597,-500.0,0.00019178,3]
[402264058,1768632645607,-1329.23,0.00019178,3]
[402264059,1768632645615,-500.0,0.00019178,3]
[402264060,1768632645624,-500.0,0.00019178,3]
[402264061,1768632645633,-638.71,0.00019178,3]
[402264062,1768632645643,-500.0,0.00019178,3]
[402264063,1768632645652,-500.0,0.00019178,3]
[402264064,1768632645662,-500.0,0.00019178,3]
[402264065,1768632645671,-500.0,0.00019178,3]
[402264066,1768632645681,-500.0,0.00019178,3]
[402264067,1768632645690,-2136.32,0.00019178,3]
[402264068,1768632645702,-1019.05,0.00019178,3]
[402264069,1768632645712,-535.27896173,0.00019178,3]
[402264070,1768632645721,-1526.12,0.00019178,3]
[402264071,1768632645730,-500.0,0.00019178,3]
[402264072,1768632645740,-500.0,0.00019178,3]
[402264073,1768632645749,-500.0,0.00019178,3]
[402264074,1768632645758,-500.0,0.00019178,3]
[402264075,1768632645767,-500.0,0.00019178,3]
[402264076,1768632645776,-686.85,0.00019178,3]
[402264077,1768632645785,-2456.62,0.00019178,3]
[402264078,1768632645795,-500.0,0.00019178,3]
[402264079,1768632645804,-500.0,0.00019178,3]
[402264080,1768632645813,-435.20636976,0.00019178,3]
[402264081,1768632645823,-500.0,0.00019178,3]
[402264082,1768632645832,-500.0,0.00019178,3]
[402264083,1768632645842,-943.63,0.00019178,3]
[402264084,1768632645851,-500.0,0.00019178,3]
[402264085,1768632645860,-500.0,0.00019178,3]
[402264086,1768632645869,-500.0,0.00019178,3]
[402264087,1768632645879,-500.0,0.00019178,3]
[402264088,1768632645889,-500.0,0.00019178,3]
[402264089,1768632645900,-500.0,0.00019178,3]
[402264090,1768632645910,-500.0,0.00019178,3]
[402264091,1768632645920,-500.0,0.00019178,3]
[402264092,1768632645931,-633.14,0.00019178,3]
[402264093,1768632645941,-500.0,0.00019178,3]
[402264094,1768632645951,-1517.1,0.00019178,3]
[402264095,1768632645961,-506.71,0.00019178,3]
[402264096,1768632645970,-847.18,0.00019178,3]
[402264097,1768632645980,-500.0,0.00019178,3]
[402264098,1768632645990,-589.99,0.00019178,3]
[402264099,1768632646000,-500.0,0.00019178,3]
[402264100,1768632646010,-500.0,0.00019178,3]
[402264101,1768632646019,-1102.58,0.00019178,3]
[402264102,1768632646029,-1719.9,0.00019178,3]
[402264103,1768632646039,-1000.0,0.00019178,2]
[402264104,1768632646050,-500.0,0.00019178,3]
[402264105,1768632646060,-500.0,0.00019178,3]
[402264106,1768632646070,-525.61,0.00019178,3]
[402264107,1768632646081,-1199.96,0.00019178,3]
[402264108,1768632646091,-1447.89,0.00019178,3]
[402264109,1768632646101,-309.96810054,0.00019178,3]
[402264110,1768632646111,-500.0,0.00019178,3]
[402264111,1768632646121,-500.0,0.00019178,3]
[402264112,1768632646131,-1140.43,0.00019178,3]
[402264113,1768632646141,-500.0,0.00019178,3]
[402264114,1768632646151,-423.66716387,0.00019178,3]
[402264115,1768632646161,-644.62,0.00019178,3]
[402264116,1768632646171,-500.0,0.00019178,3]
[402264117,1768632646180,-1709.81,0.00019178,3]
[402264118,1768632646191,-1717.32,0.00019178,3]
[402264119,1768632646200,-587.21,0.00019178,3]
[402264120,1768632646211,-500.0,0.00019178,3]
[402264121,1768632646221,-500.0,0.00019178,3]
[402264122,1768632646231,-500.0,0.00019178,3]
[402264123,1768632646241,-514.45,0.00019178,3]
[402264124,1768632646251,-323.34781817,0.00019178,3]
[402264125,1768632646261,-500.0,0.00019178,3]
[402264126,1768632646271,-2132.97,0.00019178,3]
[402264127,1768632646281,-500.0,0.00019178,3]
[402264128,1768632646291,-500.0,0.00019178,3]
[402264129,1768632646301,-500.0,0.00019178,3]
[402264130,1768632646311,-1441.58,0.00019178,3]
[402264131,1768632646322,-500.0,0.00019178,3]
[402264132,1768632646332,-581.49,0.00019178,3]
[402264133,1768632646342,-515.09013638,0.00019178,3]
[402264134,1768632646352,-183.73779352,0.00019178,3]
[402264135,1768632646362,-500.0,0.00019178,3]
[402264136,1768632646372,-1892.19,0.00019178,3]
[402264137,1768632646382,-1016.13,0.00019178,3]
[402264138,1768632646392,-547.68,0.00019178,3]
[402264139,1768632646401,-834.37,0.00019178,3]
[402264140,1768632646411,-816.49,0.00019178,3]
[402264141,1768632646422,-500.0,0.00019178,3]
[402264142,1768632646432,-500.0,0.00019178,3]
[402264143,1768632646442,-939.73,0.00019178,3]
[402264144,1768632646453,-4867.96727998,0.00019178,3]
[402264157,1768632649199,-5000.0,0.00017325,2]
[402264158,1768632649210,-184.9581126,0.000175,2]
[402264159,1768632649221,-1556.05048465,0.00018292,2]
[402264160,1768632649231,-10522.84272002,0.00019178,3]
[402264161,1768632649241,-972.04,0.00019178,3]
[402264162,1768632649251,-952.81,0.00019178,3]
[402264163,1768632649263,-500.0,0.00019178,3]
[402264164,1768632649272,-556.64273498,0.00019178,3]
[402264165,1768632649282,-500.0,0.00019178,3]
[402264166,1768632649293,-825.27,0.00019178,3]
[402264167,1768632649303,-69.91486,0.00019178,3]
[402264168,1768632650171,-430.08514,0.00019178,3]
[402264169,1768632650180,-532.76,0.00019178,3]
[402264170,1768632650189,-101.18415448,0.00019178,3]
[402264171,1768632782335,300.0,0.00010399,2]
[402264172,1768632842270,-600.0,0.000104,2]
[402264173,1768632842294,-200.0,0.000104,2]
[402264174,1768632848139,-300.0,0.00010399,2]
[402264175,1768632848160,-300.0,0.00010399,2]
[402264176,1768632848181,-300.0,0.000104,2]
[402264177,1768632851755,-1000.0,0.00010296,2]
[402264178,1768632852105,-1000.0,0.00010296,2]
[402264179,1768632852621,-1000.0,0.00010296,2]
[402264180,1768632853036,-1000.0,0.00010296,2]
[402264181,1768632853404,-1000.0,0.00010296,2]
[402264182,1768632853696,-100.0,0.000104,2]
[402264183,1768632853717,-600.0,0.000104,2]
[402264184,1768632853737,-300.0,0.000104,2]
[402264185,1768632854602,-300.0,0.000104,2]
[402264186,1768632854624,-600.0,0.000104,2]
[402264187,1768632854646,-100.0,0.000104,2]
[402264188,1768632854939,-500.0,0.000104,2]
[402264189,1768632854960,-500.0,0.000104,2]
[402264190,1768632855258,-100.0,0.000104,2]
[402264191,1768632855279,-600.0,0.000104,2]
[402264192,1768632855302,-300.0,0.000104,2]
[402264193,1768632856037,-300.0,0.000104,2]
[402264194,1768632856058,-600.0,0.000104,2]
[402264195,1768632856078,-100.0,0.000104,2]
[402264196,1768632856258,-500.0,0.000104,2]
[402264197,1768632856280,-500.0,0.000104,2]
[402264198,1768632856443,-511.03945277,0.000104,2]
[402264199,1768632856462,-488.96054723,0.000104,2]
[402264200,1768632856616,-11.03945277,0.000104,2]
[402264201,1768632856636,-500.0,0.000104,2]
[402264202,1768632856656,-488.96054723,0.000104,2]
[402264203,1768632856991,-11.03945277,0.000104,2]
[402264204,1768632857012,-500.0,0.000104,2]
[402264205,1768632857033,-488.96054723,0.000104,2]
[402264206,1768632857408,-385.75815473,0.000104,2]
[402264207,1768632857430,-500.0,0.000104,2]
[402264208,1768632857454,-114.24184527,0.000104,2]
[402264209,1768632857741,-385.75815473,0.000104,2]
[402264210,1768632857764,-500.0,0.000104,2]
[402264211,1768632857787,-114.24184527,0.000104,2]
[402264212,1768632858387,-533.27940318,0.000104,2]
[402264213,1768632859516,466.72059682,0.00010296,2]
[402264214,1768632860894,-1000.0,0.00010296,2]
[402264215,1768632862681,-1000.0,0.00010296,2]
[402264216,1768632863992,-1000.0,0.00010296,2]
[402264217,1768632864987,-716.69189088,0.00010296,2]
[402264218,1768632868705,283.30810912,0.00010193,2]
[402264219,1768632868729,1000.0,0.00010193,2]
[402264220,1768632873932,-1000.0,0.00010193,2]
[402264221,1768632879888,-500.0,0.00010091,2]
[402264223,1768632956414,916.05105439,8.93e-05,2]
[402264258,1768633831619,-1200.0,9.309e-05,2]
[402264260,1768633831629,-4064.51946364,9.31e-05,2]
[402264473,1768633837867,-935.48053636,9.31e-05,2]
[402264475,1768633837877,-550.0,9.31e-05,2]
[402264477,1768633837886,-156.73095699,9.357e-05,2]
[402264479,1768633837896,-3328.90155368,9.404e-05,2]
[402264481,1768633837908,-1671.09844632,9.404e-05,2]
[402264483,1768633837918,-300.0,9.544e-05,2]
[402264485,1768633837931,-300.0,9.544e-05,2]
[402264488,1768633837946,-300.0,9.544e-05,2]
[402264490,1768633837956,-300.0,9.545e-05,2]
[402264492,1768633837968,-1680.0,0.0001024,2]
[402264494,1768633837978,-420.0,0.00010498,2]
[402264496,1768633837987,-238.0,0.00010498,2]
[402264498,1768633837996,-300.0,0.000105,2]
[402264500,1768633838006,-3349.28393187,0.00010729,2]
[402264502,1768633838018,-506.26733003,0.00010729,2]
[402264504,1768633838028,-151.0,0.00010737,2]
[402264506,1768633838037,-190.88320984,0.00010737,2]
[402264508,1768633838047,-4991.3668845,0.00010744,2]
[402264510,1768633838056,-184.94252925,0.00011357,2]
[402264512,1768633838066,-245.0,0.00011548,2]
[402264513,1768633838075,-3855.5512619,0.00012153,2]
[402264514,1768633838084,-396.15934729,0.00013273,2]
[402264515,1768633838095,-103.84065271,0.00013273,2]
[402264516,1768633838104,-213.15410151,0.00013357,2]
[402264517,1768633838113,-3605.16527333,0.00013576,2]
[402264518,1768633838125,-250.38598857,0.00013576,2]
[402264519,1768633838134,-580.442467,0.00013699,2]
[402264520,1768633838144,-500.0,0.00013699,2]
[402264521,1768633838153,-500.0,0.00013699,2]
[402264522,1768633838162,-1000.0,0.00013821,2]
[402264523,1768633838172,-501.58207676,0.00014247,2]
[402264524,1768633838181,-500.0,0.00014247,2]
[402264525,1768633838191,-1500.0,0.00014368,2]
[402264526,1768633838200,-2000.0,0.00014916,2]
[402264527,1768633838209,-3855.5512619,0.00015,2]
[402264528,1768633838219,-300.0,0.00015,2]
[402264529,1768633838230,-158.522776,0.00015068,2]
[402264530,1768633838239,-241.36567377,0.00015357,2]
[402264531,1768633838249,-396.75207716,0.00015399,2]
[402264532,1768633838258,-500.0,0.00015399,2]
[402264533,1768633838268,-500.0,0.00015399,2]
[402264534,1768633838277,-500.0,0.00015399,2]
[402264535,1768633838286,-500.0,0.00015399,2]
[402264536,1768633838295,-500.0,0.00015399,2]
[402264537,1768633838305,-215.95586962,0.00015399,2]
[402264538,1768633838315,-500.0,0.00015399,2]
[402264539,1768633838324,-500.0,0.00015399,2]
[402264540,1768633838334,-500.0,0.00015399,2]
[402264541,1768633838343,-500.0,0.00015399,2]
[402264542,1768633838352,-500.0,0.00015399,2]
[402264543,1768633838362,-471.39689182,0.00015399,2]
[402264544,1768633838371,-500.0,0.00015399,2]